[Event "Titled Tuesday Blitz April 05 Early 2022"]
[White "Dobrov, Vladimir"]
[Black "Rastbod, Ali"]
[WhiteFideId "4136594"]
[BlackFideId "12567477"]
[WhiteElo "2575"]
[BlackElo "2147"]
[Result "1/2-1/2"]
[Round "02"]
[TimeControl "180+1"]
[Date "2022.04.05"]
[WhiteClock "0:00:09"]
[BlackClock "0:00:06"]

1. d4 {[%clk 0:03:00]}  Nf6 {[%clk 0:02:55]} 2. c4 {[%clk 0:03:00]}  e6 {[%clk 0:02:53]} 3. Nf3 {[%clk 0:03:00]}  Bb4+ {[%clk 0:02:50]} 4. Nbd2 {[%clk 0:03:00]}  O-O {[%clk 0:02:47]} 5. a3 {[%clk 0:03:00]}  Be7 {[%clk 0:02:48]} 6. e4 {[%clk 0:03:00]}  d6 {[%clk 0:02:48]} 7. Be2 {[%clk 0:03:00]}  Nfd7 {[%clk 0:02:48]} 8. Nb1 {[%clk 0:02:54]}  e5 {[%clk 0:02:48]} 9. Nc3 {[%clk 0:02:53]}  exd4 {[%clk 0:02:48]} 10. Nxd4 {[%clk 0:02:53]}  Nc6 {[%clk 0:02:48]} 11. Be3 {[%clk 0:02:24]}  Bf6 {[%clk 0:02:46]} 12. O-O {[%clk 0:02:18]}  Nc5 {[%clk 0:02:46]} 13. Nxc6 {[%clk 0:01:47]}  bxc6 {[%clk 0:02:46]} 14. Qc2 {[%clk 0:01:45]}  Bxc3 {[%clk 0:02:24]} 15. bxc3 {[%clk 0:01:42]}  Re8 {[%clk 0:02:25]} 16. f3 {[%clk 0:01:23]}  a5 {[%clk 0:02:08]} 17. Rae1 {[%clk 0:01:04]}  f6 {[%clk 0:01:47]} 18. g4 {[%clk 0:00:58]}  a4 {[%clk 0:01:42]} 19. Kh1 {[%clk 0:00:55]}  Nb3 {[%clk 0:01:40]} 20. Rg1 {[%clk 0:00:53]}  c5 {[%clk 0:01:39]} 21. Bd3 {[%clk 0:00:47]}  Bb7 {[%clk 0:01:30]} 22. Qg2 {[%clk 0:00:31]}  g5 {[%clk 0:01:10]} 23. h4 {[%clk 0:00:31]}  h6 {[%clk 0:01:11]} 24. Qg3 {[%clk 0:00:29]}  Kg7 {[%clk 0:01:08]} 25. Kg2 {[%clk 0:00:29]}  Qe7 {[%clk 0:01:06]} 26. Kf2 {[%clk 0:00:23]}  Qe5 {[%clk 0:01:06]} 27. Qxe5 {[%clk 0:00:17]}  dxe5 {[%clk 0:01:07]} 28. Bc2 {[%clk 0:00:16]}  Ba6 {[%clk 0:01:05]} 29. Rd1 {[%clk 0:00:16]}  Rad8 {[%clk 0:01:02]} 30. Bd3 {[%clk 0:00:11]}  Re6 {[%clk 0:01:02]} 31. Be2 {[%clk 0:00:11]}  Red6 {[%clk 0:01:02]} 32. Rd5 {[%clk 0:00:11]}  c6 {[%clk 0:00:53]} 33. Rxd6 {[%clk 0:00:11]}  Rxd6 {[%clk 0:00:54]} 34. hxg5 {[%clk 0:00:11]}  hxg5 {[%clk 0:00:52]} 35. Rb1 {[%clk 0:00:11]}  Rd8 {[%clk 0:00:41]} 36. Ke1 {[%clk 0:00:11]}  Rd7 {[%clk 0:00:38]} 37. Kf2 {[%clk 0:00:11]}  Rb7 {[%clk 0:00:21]} 38. Ke1 {[%clk 0:00:10]}  Na5 {[%clk 0:00:19]} 39. Rxb7+ {[%clk 0:00:10]}  Nxb7 {[%clk 0:00:20]} 40. Kd2 {[%clk 0:00:10]}  Kf7 {[%clk 0:00:20]} 41. Kd3 {[%clk 0:00:10]}  Ke6 {[%clk 0:00:21]} 42. Bd1 {[%clk 0:00:10]}  Na5 {[%clk 0:00:19]} 43. Bxc5 {[%clk 0:00:10]}  Bxc4+ {[%clk 0:00:18]} 44. Ke3 {[%clk 0:00:09]}  Bb5 {[%clk 0:00:15]} 45. Bb4 {[%clk 0:00:08]}  Nc4+ {[%clk 0:00:14]} 46. Kf2 {[%clk 0:00:08]}  Nb2 {[%clk 0:00:13]} 47. Bc2 {[%clk 0:00:08]}  Nc4 {[%clk 0:00:08]} 48. Bd3 {[%clk 0:00:07]}  Nxa3 {[%clk 0:00:05]} 49. Bxa3 {[%clk 0:00:07]}  Bxd3 {[%clk 0:00:06]} 50. Ke3 {[%clk 0:00:07]}  Bc4 {[%clk 0:00:05]} 51. Kd2 {[%clk 0:00:07]}  Kd7 {[%clk 0:00:05]} 52. Ke3 {[%clk 0:00:07]}  Bf7 {[%clk 0:00:04]} 53. Kd2 {[%clk 0:00:07]}  Bg8 {[%clk 0:00:03]} 54. Kc2 {[%clk 0:00:07]}  Bb3+ {[%clk 0:00:03]} 55. Kd2 {[%clk 0:00:08]}  Bc4 {[%clk 0:00:03]} 56. Ke3 {[%clk 0:00:08]}  Be6 {[%clk 0:00:03]} 57. Kd2 {[%clk 0:00:08]}  Ke8 {[%clk 0:00:04]} 58. Kc2 {[%clk 0:00:08]}  Bc8 {[%clk 0:00:04]} 59. Kd2 {[%clk 0:00:08]}  Ba6 {[%clk 0:00:04]} 60. Ke3 {[%clk 0:00:08]}  Kf7 {[%clk 0:00:05]} 61. Kd2 {[%clk 0:00:08]}  Ke6 {[%clk 0:00:05]} 62. Ke3 {[%clk 0:00:08]}  Bc4 {[%clk 0:00:05]} 63. Kd2 {[%clk 0:00:09]}  Kd7 {[%clk 0:00:06]} 1/2-1/2


[Site "https://www.chess.com"]

[Event "Titled Tuesday Blitz April 05 Early 2022"]
[White "Ezat, Mohamed"]
[Black "Timofeev, Artyom"]
[WhiteFideId "10600906"]
[BlackFideId "4140419"]
[WhiteElo "2386"]
[BlackElo "2594"]
[Result "0-1"]
[Round "02"]
[TimeControl "180+1"]
[Date "2022.04.05"]
[WhiteClock "0:00:22"]
[BlackClock "0:00:23"]

1. d4 {[%clk 0:02:57]}  Nf6 {[%clk 0:02:58]} 2. c4 {[%clk 0:02:57]}  e6 {[%clk 0:02:58]} 3. Nc3 {[%clk 0:02:58]}  d5 {[%clk 0:02:58]} 4. cxd5 {[%clk 0:02:57]}  Nxd5 {[%clk 0:02:58]} 5. e4 {[%clk 0:02:56]}  Nxc3 {[%clk 0:02:59]} 6. bxc3 {[%clk 0:02:57]}  c5 {[%clk 0:02:59]} 7. a3 {[%clk 0:02:57]}  Be7 {[%clk 0:02:58]} 8. Nf3 {[%clk 0:02:57]}  O-O {[%clk 0:02:58]} 9. Bd3 {[%clk 0:02:58]}  b6 {[%clk 0:02:57]} 10. e5 {[%clk 0:02:54]}  Bb7 {[%clk 0:02:54]} 11. h4 {[%clk 0:02:54]}  h6 {[%clk 0:02:52]} 12. Rh3 {[%clk 0:02:53]}  f5 {[%clk 0:02:34]} 13. exf6 {[%clk 0:02:51]}  Bxf6 {[%clk 0:02:34]} 14. Rg3 {[%clk 0:02:48]}  Kh8 {[%clk 0:02:33]} 15. Ne5 {[%clk 0:02:35]}  Bxe5 {[%clk 0:02:28]} 16. dxe5 {[%clk 0:02:35]}  Qxh4 {[%clk 0:02:24]} 17. Qe2 {[%clk 0:02:20]}  Qh1+ {[%clk 0:02:14]} 18. Kd2 {[%clk 0:02:16]}  Qg1 {[%clk 0:01:55]} 19. f3 {[%clk 0:02:16]}  Nd7 {[%clk 0:01:44]} 20. Kc2 {[%clk 0:02:12]}  Qh2 {[%clk 0:01:30]} 21. Qf2 {[%clk 0:01:53]}  Nxe5 {[%clk 0:01:26]} 22. Be2 {[%clk 0:01:42]}  Qh4 {[%clk 0:01:19]} 23. Bxh6 {[%clk 0:01:18]}  Qa4+ {[%clk 0:01:08]} 24. Kb2 {[%clk 0:01:16]}  gxh6 {[%clk 0:01:08]} 25. Rh1 {[%clk 0:01:15]}  Rf6 {[%clk 0:01:01]} 26. Qe3 {[%clk 0:01:13]}  Nf7 {[%clk 0:00:54]} 27. c4 {[%clk 0:01:10]}  Qd7 {[%clk 0:00:51]} 28. Rh4 {[%clk 0:01:06]}  Rd8 {[%clk 0:00:49]} 29. Kc2 {[%clk 0:01:03]}  e5 {[%clk 0:00:42]} 30. Bd3 {[%clk 0:01:00]}  Qe6 {[%clk 0:00:33]} 31. Kb2 {[%clk 0:00:57]}  Rd4 {[%clk 0:00:33]} 32. Rh1 {[%clk 0:00:52]}  e4 {[%clk 0:00:33]} 33. fxe4 {[%clk 0:00:47]}  Bxe4 {[%clk 0:00:32]} 34. Be2 {[%clk 0:00:36]}  Qe5 {[%clk 0:00:31]} 35. Ka2 {[%clk 0:00:34]}  Bh7 {[%clk 0:00:28]} 36. Qxe5 {[%clk 0:00:23]}  Nxe5 {[%clk 0:00:28]} 37. Rgh3 {[%clk 0:00:24]}  Kg7 {[%clk 0:00:27]} 38. Rg3+ {[%clk 0:00:23]}  Bg6 {[%clk 0:00:27]} 39. Bh5 {[%clk 0:00:22]}  Rf2+ {[%clk 0:00:25]} 40. Kb3 {[%clk 0:00:22]}  Rd3+ {[%clk 0:00:24]} 41. Ka4 {[%clk 0:00:22]}  Rxg3 {[%clk 0:00:23]} 0-1


[Site "https://www.chess.com"]

[Event "Titled Tuesday Blitz April 05 Early 2022"]
[White "Ferreira, Vitor Hugo Vieira"]
[Black "Sovetbekova, Nurai"]
[WhiteFideId "2119765"]
[BlackFideId "13801910"]
[WhiteElo "2165"]
[BlackElo "1538"]
[Result "0-1"]
[Round "02"]
[TimeControl "180+1"]
[Date "2022.04.05"]
[WhiteClock "0:00:30"]
[BlackClock "0:00:07"]

1. e3 {[%clk 0:03:00]}  d5 {[%clk 0:02:54]} 2. d4 {[%clk 0:02:59]}  Nf6 {[%clk 0:02:52]} 3. Nf3 {[%clk 0:02:59]}  g6 {[%clk 0:02:45]} 4. Bd3 {[%clk 0:02:59]}  Bg7 {[%clk 0:02:45]} 5. Nbd2 {[%clk 0:02:59]}  c5 {[%clk 0:02:43]} 6. b3 {[%clk 0:02:59]}  b6 {[%clk 0:02:39]} 7. Bb2 {[%clk 0:02:59]}  Nc6 {[%clk 0:02:38]} 8. O-O {[%clk 0:02:59]}  O-O {[%clk 0:02:38]} 9. a3 {[%clk 0:02:59]}  Nd7 {[%clk 0:02:34]} 10. Qe2 {[%clk 0:02:56]}  e5 {[%clk 0:02:30]} 11. dxe5 {[%clk 0:02:55]}  Ndxe5 {[%clk 0:02:28]} 12. Nxe5 {[%clk 0:02:54]}  Nxe5 {[%clk 0:02:28]} 13. Ba6 {[%clk 0:02:37]}  Bf5 {[%clk 0:02:04]} 14. e4 {[%clk 0:02:31]}  dxe4 {[%clk 0:01:56]} 15. Nxe4 {[%clk 0:02:31]}  Qh4 {[%clk 0:01:43]} 16. Bxe5 {[%clk 0:01:48]}  Bxe5 {[%clk 0:01:38]} 17. Ng3 {[%clk 0:01:48]}  Bxa1 {[%clk 0:01:31]} 18. Nxf5 {[%clk 0:01:43]}  Qf6 {[%clk 0:01:19]} 19. Nh6+ {[%clk 0:01:40]}  Kg7 {[%clk 0:01:13]} 20. Ng4 {[%clk 0:01:41]}  Qc3 {[%clk 0:01:02]} 21. Ne3 {[%clk 0:01:29]}  Rae8 {[%clk 0:00:53]} 22. Qd1 {[%clk 0:01:22]}  Bb2 {[%clk 0:00:52]} 23. Nd5 {[%clk 0:01:18]}  Qe5 {[%clk 0:00:44]} 24. a4 {[%clk 0:01:14]}  Bd4 {[%clk 0:00:36]} 25. Bc4 {[%clk 0:01:13]}  Rd8 {[%clk 0:00:31]} 26. Qf3 {[%clk 0:01:13]}  Qd6 {[%clk 0:00:20]} 27. c3 {[%clk 0:01:10]}  Be5 {[%clk 0:00:20]} 28. g3 {[%clk 0:01:10]}  f5 {[%clk 0:00:19]} 29. Re1 {[%clk 0:01:10]}  Rfe8 {[%clk 0:00:19]} 30. Rd1 {[%clk 0:01:10]}  Qf8 {[%clk 0:00:17]} 31. h4 {[%clk 0:01:08]}  Bf6 {[%clk 0:00:16]} 32. Nf4 {[%clk 0:01:06]}  Rxd1+ {[%clk 0:00:15]} 33. Qxd1 {[%clk 0:01:07]}  Be5 {[%clk 0:00:13]} 34. Ne6+ {[%clk 0:01:07]}  Rxe6 {[%clk 0:00:13]} 35. Bxe6 {[%clk 0:01:08]}  Qe7 {[%clk 0:00:13]} 36. Bc4 {[%clk 0:01:05]}  Bxc3 {[%clk 0:00:13]} 37. Qd5 {[%clk 0:01:05]}  Bd4 {[%clk 0:00:13]} 38. Kg2 {[%clk 0:01:00]}  Kf6 {[%clk 0:00:10]} 39. Qc6+ {[%clk 0:00:59]}  Kg7 {[%clk 0:00:10]} 40. Qf3 {[%clk 0:01:00]}  Qe4 {[%clk 0:00:10]} 41. Qxe4 {[%clk 0:00:57]}  fxe4 {[%clk 0:00:11]} 42. Bd5 {[%clk 0:00:57]}  e3 {[%clk 0:00:11]} 43. fxe3 {[%clk 0:00:54]}  Bxe3 {[%clk 0:00:12]} 44. g4 {[%clk 0:00:53]}  Kf6 {[%clk 0:00:12]} 45. Kf3 {[%clk 0:00:53]}  Bd4 {[%clk 0:00:12]} 46. Ke4 {[%clk 0:00:53]}  h5 {[%clk 0:00:09]} 47. gxh5 {[%clk 0:00:52]}  gxh5 {[%clk 0:00:10]} 48. Kf3 {[%clk 0:00:42]}  Kg6 {[%clk 0:00:07]} 49. Bc6 {[%clk 0:00:42]}  Bf6 {[%clk 0:00:07]} 50. Kg3 {[%clk 0:00:42]}  Be5+ {[%clk 0:00:06]} 51. Kh3 {[%clk 0:00:42]}  Kf7 {[%clk 0:00:06]} 52. Bf3 {[%clk 0:00:41]}  Kg6 {[%clk 0:00:06]} 53. Be4+ {[%clk 0:00:41]}  Kf6 {[%clk 0:00:06]} 54. Bf3 {[%clk 0:00:42]}  Kg6 {[%clk 0:00:06]} 55. Be4+ {[%clk 0:00:42]}  Kh6 {[%clk 0:00:06]} 56. Bd3 {[%clk 0:00:41]}  Bd4 {[%clk 0:00:06]} 57. Be4 {[%clk 0:00:40]}  a6 {[%clk 0:00:05]} 58. Bd3 {[%clk 0:00:41]}  a5 {[%clk 0:00:05]} 59. Be4 {[%clk 0:00:41]}  Bf2 {[%clk 0:00:04]} 60. Bg2 {[%clk 0:00:40]}  Kg6 {[%clk 0:00:03]} 61. Be4+ {[%clk 0:00:40]}  Kf6 {[%clk 0:00:04]} 62. Bf3 {[%clk 0:00:40]}  Kg6 {[%clk 0:00:04]} 63. Kg2 {[%clk 0:00:40]}  Be3 {[%clk 0:00:04]} 64. Be2 {[%clk 0:00:39]}  Bd2 {[%clk 0:00:04]} 65. Kf3 {[%clk 0:00:38]}  Be1 {[%clk 0:00:04]} 66. Ke4 {[%clk 0:00:38]}  Bxh4 {[%clk 0:00:04]} 67. Kd5 {[%clk 0:00:39]}  Bd8 {[%clk 0:00:04]} 68. Kc6 {[%clk 0:00:40]}  h4 {[%clk 0:00:05]} 69. Kd7 {[%clk 0:00:40]}  Bf6 {[%clk 0:00:05]} 70. Kc7 {[%clk 0:00:39]}  h3 {[%clk 0:00:06]} 71. Bf3 {[%clk 0:00:39]}  Bd4 {[%clk 0:00:05]} 72. Kc6 {[%clk 0:00:32]}  Kg5 {[%clk 0:00:04]} 73. Kd5 {[%clk 0:00:32]}  Kf4 {[%clk 0:00:05]} 74. Bh1 {[%clk 0:00:32]}  Kg3 {[%clk 0:00:05]} 75. Kc6 {[%clk 0:00:28]}  Kh2 {[%clk 0:00:05]} 76. Bd5 {[%clk 0:00:28]}  Kg1 {[%clk 0:00:05]} 77. Kxb6 {[%clk 0:00:28]}  c4+ {[%clk 0:00:05]} 78. Kb5 {[%clk 0:00:29]}  cxb3 {[%clk 0:00:05]} 79. Bxb3 {[%clk 0:00:30]}  Bc3 {[%clk 0:00:04]} 80. Bd5 {[%clk 0:00:28]}  h2 {[%clk 0:00:04]} 81. Kc4 {[%clk 0:00:28]}  Bb4 {[%clk 0:00:03]} 82. Kb3 {[%clk 0:00:29]}  h1=Q {[%clk 0:00:03]} 83. Ka2 {[%clk 0:00:30]}  Qh2+ {[%clk 0:00:03]} 84. Ka1 {[%clk 0:00:29]}  Qe5+ {[%clk 0:00:04]} 85. Ka2 {[%clk 0:00:28]}  Qxd5+ {[%clk 0:00:05]} 86. Kb2 {[%clk 0:00:28]}  Qg2+ {[%clk 0:00:05]} 87. Kb1 {[%clk 0:00:29]}  Qe2 {[%clk 0:00:05]} 88. Kc1 {[%clk 0:00:29]}  Kf2 {[%clk 0:00:06]} 89. Kb1 {[%clk 0:00:29]}  Ke3 {[%clk 0:00:06]} 90. Kc1 {[%clk 0:00:30]}  Kd3 {[%clk 0:00:07]} 91. Kb1 {[%clk 0:00:30]}  Kc3 {[%clk 0:00:07]} 92. Ka1 {[%clk 0:00:30]}  Qb2# {[%clk 0:00:07]} 0-1


[Site "https://www.chess.com"]

[Event "Titled Tuesday Blitz April 05 Early 2022"]
[White "Fier, Alexandr"]
[Black "Lauridsen, Jesper Morch"]
[WhiteFideId "2107139"]
[BlackFideId "1401890"]
[WhiteElo "2571"]
[BlackElo "2237"]
[Result "1-0"]
[Round "02"]
[TimeControl "180+1"]
[Date "2022.04.05"]
[WhiteClock "0:01:47"]
[BlackClock "0:00:05"]

1. d4 {[%clk 0:03:00]}  d5 {[%clk 0:02:59]} 2. Nf3 {[%clk 0:03:01]}  e6 {[%clk 0:02:59]} 3. Bf4 {[%clk 0:03:01]}  Nf6 {[%clk 0:02:58]} 4. Be5 {[%clk 0:03:01]}  c5 {[%clk 0:02:56]} 5. e3 {[%clk 0:03:01]}  Qb6 {[%clk 0:02:51]} 6. Nbd2 {[%clk 0:02:58]}  Nc6 {[%clk 0:02:46]} 7. Bxf6 {[%clk 0:02:55]}  gxf6 {[%clk 0:02:46]} 8. Rb1 {[%clk 0:02:56]}  cxd4 {[%clk 0:02:45]} 9. exd4 {[%clk 0:02:53]}  Nxd4 {[%clk 0:02:38]} 10. Nxd4 {[%clk 0:02:50]}  Qxd4 {[%clk 0:02:37]} 11. Bb5+ {[%clk 0:02:50]}  Bd7 {[%clk 0:02:36]} 12. Bxd7+ {[%clk 0:02:51]}  Kxd7 {[%clk 0:02:35]} 13. O-O {[%clk 0:02:52]}  Bh6 {[%clk 0:02:18]} 14. Nf3 {[%clk 0:02:43]}  Qxd1 {[%clk 0:02:16]} 15. Rfxd1 {[%clk 0:02:44]}  Rhc8 {[%clk 0:02:12]} 16. c3 {[%clk 0:02:45]}  b5 {[%clk 0:02:07]} 17. Nd4 {[%clk 0:02:42]}  Rab8 {[%clk 0:02:06]} 18. a3 {[%clk 0:02:41]}  a5 {[%clk 0:02:06]} 19. Nb3 {[%clk 0:02:42]}  b4 {[%clk 0:01:56]} 20. cxb4 {[%clk 0:02:36]}  axb4 {[%clk 0:01:53]} 21. a4 {[%clk 0:02:37]}  Rc2 {[%clk 0:01:43]} 22. Nd4 {[%clk 0:02:35]}  Rd2 {[%clk 0:01:40]} 23. Kf1 {[%clk 0:02:30]}  b3 {[%clk 0:01:12]} 24. Rxd2 {[%clk 0:02:22]}  Bxd2 {[%clk 0:01:11]} 25. Ke2 {[%clk 0:02:23]}  Bf4 {[%clk 0:01:04]} 26. Kd3 {[%clk 0:02:17]}  Rb4 {[%clk 0:00:51]} 27. a5 {[%clk 0:02:07]}  Be5 {[%clk 0:00:43]} 28. Nf3 {[%clk 0:02:07]}  Ra4 {[%clk 0:00:40]} 29. Nd2 {[%clk 0:02:08]}  Rxa5 {[%clk 0:00:35]} 30. Nxb3 {[%clk 0:02:08]}  Rb5 {[%clk 0:00:35]} 31. Kc2 {[%clk 0:02:07]}  h5 {[%clk 0:00:29]} 32. Nc1 {[%clk 0:02:07]}  Bxh2 {[%clk 0:00:24]} 33. g3 {[%clk 0:02:05]}  h4 {[%clk 0:00:24]} 34. Ne2 {[%clk 0:02:06]}  hxg3 {[%clk 0:00:18]} 35. fxg3 {[%clk 0:02:07]}  Rb8 {[%clk 0:00:15]} 36. Rh1 {[%clk 0:02:06]}  Rh8 {[%clk 0:00:15]} 37. Kd3 {[%clk 0:02:06]}  Rh3 {[%clk 0:00:14]} 38. Ke3 {[%clk 0:02:05]}  Rxg3+ {[%clk 0:00:13]} 39. Nxg3 {[%clk 0:01:57]}  Bxg3 {[%clk 0:00:13]} 40. Rh7 {[%clk 0:01:52]}  Ke7 {[%clk 0:00:13]} 41. Kd3 {[%clk 0:01:52]}  Be5 {[%clk 0:00:12]} 42. b4 {[%clk 0:01:52]}  f5 {[%clk 0:00:12]} 43. b5 {[%clk 0:01:53]}  f4 {[%clk 0:00:12]} 44. b6 {[%clk 0:01:52]}  f3 {[%clk 0:00:10]} 45. b7 {[%clk 0:01:52]}  f2 {[%clk 0:00:09]} 46. Ke2 {[%clk 0:01:51]}  d4 {[%clk 0:00:06]} 47. Kxf2 {[%clk 0:01:50]}  d3 {[%clk 0:00:06]} 48. Ke3 {[%clk 0:01:50]}  d2 {[%clk 0:00:05]} 49. Kxd2 {[%clk 0:01:49]}  Bf4+ {[%clk 0:00:04]} 50. Ke2 {[%clk 0:01:49]}  e5 {[%clk 0:00:05]} 51. b8=Q {[%clk 0:01:47]} 1-0


[Site "https://www.chess.com"]

[Event "Titled Tuesday Blitz April 05 Early 2022"]
[White "Fikiet, Alex"]
[Black "Noritsyn, Nikolay"]
[WhiteFideId "2052717"]
[BlackFideId "2604922"]
[WhiteElo "2427"]
[BlackElo "2737"]
[Result "1-0"]
[Round "02"]
[TimeControl "180+1"]
[Date "2022.04.05"]
[WhiteClock "0:00:09"]
[BlackClock "0:00:01"]

1. e4 {[%clk 0:03:00]}  e5 {[%clk 0:02:59]} 2. Nf3 {[%clk 0:02:59]}  d6 {[%clk 0:03:00]} 3. d4 {[%clk 0:02:59]}  exd4 {[%clk 0:03:01]} 4. Nxd4 {[%clk 0:02:59]}  Nf6 {[%clk 0:03:02]} 5. Nc3 {[%clk 0:02:59]}  Be7 {[%clk 0:03:02]} 6. Bf4 {[%clk 0:03:00]}  O-O {[%clk 0:03:01]} 7. Be2 {[%clk 0:03:00]}  Nc6 {[%clk 0:03:02]} 8. Qd2 {[%clk 0:02:56]}  Nxd4 {[%clk 0:03:00]} 9. Qxd4 {[%clk 0:02:56]}  a6 {[%clk 0:02:55]} 10. O-O-O {[%clk 0:02:52]}  Be6 {[%clk 0:02:49]} 11. Kb1 {[%clk 0:02:49]}  Re8 {[%clk 0:02:46]} 12. f3 {[%clk 0:02:40]}  b5 {[%clk 0:02:39]} 13. g4 {[%clk 0:02:34]}  c5 {[%clk 0:02:36]} 14. Qd2 {[%clk 0:02:32]}  b4 {[%clk 0:02:37]} 15. Nd5 {[%clk 0:02:31]}  Nxd5 {[%clk 0:02:13]} 16. exd5 {[%clk 0:02:30]}  Bd7 {[%clk 0:02:14]} 17. g5 {[%clk 0:02:23]}  Bb5 {[%clk 0:02:11]} 18. Rde1 {[%clk 0:02:09]}  Qd7 {[%clk 0:01:52]} 19. h4 {[%clk 0:02:07]}  Qf5 {[%clk 0:01:29]} 20. Rh2 {[%clk 0:01:51]}  Bf8 {[%clk 0:01:22]} 21. h5 {[%clk 0:01:44]}  c4 {[%clk 0:01:14]} 22. Bg3 {[%clk 0:01:10]}  c3 {[%clk 0:01:02]} 23. Qf4 {[%clk 0:00:45]}  Qxd5 {[%clk 0:00:54]} 24. Rd1 {[%clk 0:00:42]}  Qc5 {[%clk 0:00:39]} 25. Bd3 {[%clk 0:00:27]}  Bxd3 {[%clk 0:00:36]} 26. cxd3 {[%clk 0:00:26]}  Rac8 {[%clk 0:00:25]} 27. Rc1 {[%clk 0:00:25]}  Qd5 {[%clk 0:00:21]} 28. bxc3 {[%clk 0:00:16]}  Qxd3+ {[%clk 0:00:19]} 29. Ka1 {[%clk 0:00:15]}  Rxc3 {[%clk 0:00:19]} 30. g6 {[%clk 0:00:14]}  Rxc1+ {[%clk 0:00:17]} 31. Qxc1 {[%clk 0:00:14]}  Qxf3 {[%clk 0:00:14]} 32. Rf2 {[%clk 0:00:12]}  Qb7 {[%clk 0:00:02]} 33. gxf7+ {[%clk 0:00:12]}  Qxf7 {[%clk 0:00:03]} 34. Rxf7 {[%clk 0:00:12]}  Kxf7 {[%clk 0:00:04]} 35. Qc4+ {[%clk 0:00:11]}  Re6 {[%clk 0:00:03]} 36. Qxb4 {[%clk 0:00:11]}  Be7 {[%clk 0:00:04]} 37. Qf4+ {[%clk 0:00:11]}  Bf6+ {[%clk 0:00:02]} 38. Kb1 {[%clk 0:00:10]}  d5 {[%clk 0:00:01]} 39. Qb4 {[%clk 0:00:09]}  Be7 {[%clk 0:00:01]} 40. Qb7 {[%clk 0:00:09]} 1-0


[Site "https://www.chess.com"]

[Event "Titled Tuesday Blitz April 05 Early 2022"]
[White "Gabdrakhmanov, Azat"]
[Black "Prohorov, Olexandr"]
[WhiteFideId "34189197"]
[BlackFideId "14105578"]
[WhiteElo "2279"]
[BlackElo "1993"]
[Result "1-0"]
[Round "02"]
[TimeControl "180+1"]
[Date "2022.04.05"]
[WhiteClock "0:00:11"]
[BlackClock "0:00:02"]

1. e4 {[%clk 0:03:00]}  c5 {[%clk 0:02:28]} 2. Nf3 {[%clk 0:03:00]}  Nc6 {[%clk 0:02:23]} 3. d4 {[%clk 0:03:00]}  cxd4 {[%clk 0:02:23]} 4. Nxd4 {[%clk 0:03:01]}  Nf6 {[%clk 0:02:23]} 5. Nc3 {[%clk 0:03:01]}  d6 {[%clk 0:02:24]} 6. Bg5 {[%clk 0:03:00]}  Qa5 {[%clk 0:02:20]} 7. Bxf6 {[%clk 0:02:28]}  gxf6 {[%clk 0:02:21]} 8. Nb3 {[%clk 0:02:25]}  Qd8 {[%clk 0:02:16]} 9. Qd2 {[%clk 0:02:24]}  h5 {[%clk 0:02:12]} 10. f4 {[%clk 0:02:22]}  h4 {[%clk 0:02:06]} 11. Rg1 {[%clk 0:02:22]}  e6 {[%clk 0:01:56]} 12. O-O-O {[%clk 0:02:21]}  a6 {[%clk 0:01:56]} 13. g4 {[%clk 0:02:20]}  hxg3 {[%clk 0:01:53]} 14. hxg3 {[%clk 0:02:21]}  b5 {[%clk 0:01:50]} 15. Kb1 {[%clk 0:02:21]}  Be7 {[%clk 0:01:48]} 16. Bd3 {[%clk 0:02:15]}  Bd7 {[%clk 0:01:40]} 17. Rde1 {[%clk 0:02:12]}  Qb6 {[%clk 0:01:36]} 18. Nd5 {[%clk 0:02:01]}  exd5 {[%clk 0:01:10]} 19. exd5 {[%clk 0:02:02]}  Na7 {[%clk 0:01:11]} 20. Rg2 {[%clk 0:01:39]}  Kd8 {[%clk 0:01:07]} 21. Rge2 {[%clk 0:01:37]}  Nc8 {[%clk 0:01:03]} 22. Na5 {[%clk 0:01:32]}  Kc7 {[%clk 0:00:50]} 23. b4 {[%clk 0:01:15]}  Bd8 {[%clk 0:00:39]} 24. Qc3+ {[%clk 0:01:14]}  Kb8 {[%clk 0:00:36]} 25. Nc6+ {[%clk 0:01:10]}  Kb7 {[%clk 0:00:29]} 26. Be4 {[%clk 0:00:47]}  Re8 {[%clk 0:00:22]} 27. Bf3 {[%clk 0:00:27]}  Rg8 {[%clk 0:00:21]} 28. g4 {[%clk 0:00:26]}  f5 {[%clk 0:00:13]} 29. g5 {[%clk 0:00:25]}  Qc7 {[%clk 0:00:10]} 30. Rh2 {[%clk 0:00:20]}  Nb6 {[%clk 0:00:09]} 31. Rh7 {[%clk 0:00:17]}  Rf8 {[%clk 0:00:03]} 32. g6 {[%clk 0:00:17]}  fxg6 {[%clk 0:00:02]} 33. Rg7 {[%clk 0:00:12]}  Bf6 {[%clk 0:00:03]} 34. Na5+ {[%clk 0:00:11]}  Ka7 {[%clk 0:00:02]} 35. Qxc7# {[%clk 0:00:11]} 1-0


[Site "https://www.chess.com"]